fUST/lending_fUST_20250219
["ID","MTS","AMOUNT","RATE_DAILY","PERIOD"]
[353571686,1739922647678,-212.65321229,0.00013927,2]
[353571687,1739922647688,-212.65321229,0.00013927,2]
[353571688,1739922647697,-212.65321229,0.00013927,2]
[353571689,1739922647706,-212.65321229,0.00013927,2]
[353571690,1739922647715,-212.65321229,0.00013927,2]
[353571691,1739922647724,-212.65321229,0.00013927,2]
[353571692,1739922647734,-212.65321229,0.00013927,2]
[353571693,1739922647743,-212.65321229,0.00013927,2]
[353571694,1739922647752,-212.65,0.00013927,2]
[353571695,1739922647761,-500.0,0.00013945,2]
[353571696,1739922647770,-500.0,0.00013945,2]
[353571697,1739922647780,-500.0,0.00013945,2]
[353571698,1739922647789,-500.0,0.00013945,2]
[353571699,1739922647798,-500.0,0.00013945,2]
[353571700,1739922647808,-522.69,0.00013945,2]
[353571701,1739922647818,-500.0,0.00013945,2]
[353571702,1739922647832,-500.0,0.00013945,2]
[353571703,1739922647841,-500.0,0.00013945,2]
[353571704,1739922647850,-500.0,0.00013945,2]
[353571705,1739922647860,-500.0,0.00013945,2]
[353571706,1739922647870,-1000.0,0.00013945,2]
[353571707,1739922647879,-500.0,0.00013945,2]
[353571708,1739922647888,-500.0,0.00013945,2]
[353571709,1739922647898,-548.38,0.00013945,2]
[353571710,1739922647909,-500.0,0.00013945,2]
[353571711,1739922647917,-1096.55,0.00013945,2]
[353571712,1739922647926,-500.0,0.00013945,2]
[353571713,1739922647935,-818.16,0.00013945,2]
[353571714,1739922647944,-500.0,0.00013945,2]
[353571715,1739922647954,-500.0,0.00013945,2]
[353571716,1739922647963,-500.0,0.00013945,2]
[353571717,1739922647972,-500.0,0.00013945,2]
[353571718,1739922647982,-500.0,0.00013945,2]
[353571719,1739922647991,-3381.99,0.00013945,2]
[353571720,1739922648001,-500.0,0.00013945,2]
[353571721,1739922648011,-500.0,0.00013945,2]
[353571722,1739922648020,-500.0,0.00013945,2]
[353571723,1739922648030,-500.0,0.00013945,2]
[353571724,1739922648040,-500.0,0.00013945,2]
[353571725,1739922648050,-500.0,0.00013945,2]
[353571726,1739922648060,-500.0,0.00013945,2]
[353571727,1739922648069,-500.0,0.00013945,2]
[353571728,1739922648079,-500.0,0.00013945,2]
[353571729,1739922648090,-500.0,0.00013945,2]
[353571730,1739922648100,-500.0,0.00013945,2]
[353571731,1739922648110,-652.29,0.00013945,2]
[353571732,1739922648120,-500.0,0.00013945,2]
[353571733,1739922648130,-596.6,0.00013945,2]
[353571734,1739922648140,-500.0,0.00013945,2]
[353571735,1739922648150,-331.64879416,0.00013945,2]
[353571736,1739922648160,-562.22,0.00013945,2]
[353571737,1739922648170,-500.0,0.00013945,2]
[353571738,1739922648180,-1495.66,0.00013945,2]
[353571739,1739922648191,-500.0,0.00013945,2]
[353571740,1739922648200,-496.7,0.00013945,2]
[353571741,1739922648210,-560.43,0.00013945,2]
[353571742,1739922648229,-500.0,0.00013945,2]
[353571743,1739922648241,-500.0,0.00013945,2]
[353571744,1739922648252,-645.14,0.00013945,2]
[353571745,1739922648263,-500.0,0.00013945,2]
[353571746,1739922648275,-500.0,0.00013945,2]
[353571747,1739922648286,-602.64,0.00013945,2]
[353571748,1739922648297,-1408.41,0.00013945,2]
[353571749,1739922648308,-2727.96,0.00013945,2]
[353571750,1739922648318,-16269.78,0.00013945,2]
[353571751,1739922648328,-500.0,0.00013945,2]
[353571752,1739922648338,-500.0,0.00013945,2]
[353571753,1739922648348,-539.81851401,0.00013945,2]
[353571754,1739922648358,-500.0,0.00013945,2]
[353571755,1739922648368,-500.0,0.00013945,2]
[353571756,1739922648377,-500.0,0.00013945,2]
[353571757,1739922648387,-500.0,0.00013945,2]
[353571758,1739922648398,-360.515987,0.00013988,2]
[353571759,1739922648409,-360.515987,0.0001399,2]
[353571760,1739922648420,-360.515987,0.00013998,2]
[353571761,1739922648431,-151.0,0.00014,2]
[353571762,1739922648442,-500.0,0.00014027,2]
[353571763,1739922648453,-500.0,0.00014027,2]
[353571764,1739922648465,-500.0,0.00014027,2]
[353571765,1739922648477,-500.0,0.00014027,2]
[353571766,1739922648487,-500.0,0.00014027,2]
[353571767,1739922648499,-522.69,0.00014027,2]
[353571768,1739922648509,-500.0,0.00014027,2]
[353571769,1739922648520,-500.0,0.00014027,2]
[353571770,1739922648530,-500.0,0.00014027,2]
[353571771,1739922648542,-596.24,0.00014027,2]
[353571772,1739922648553,-1000.0,0.00014027,2]
[353571773,1739922648564,-548.38,0.00014027,2]
[353571774,1739922648575,-500.0,0.00014027,2]
[353571775,1739922648586,-1096.55,0.00014027,2]
[353571776,1739922648598,-818.16,0.00014027,2]
[353571777,1739922648608,-500.0,0.00014027,2]
[353571778,1739922648619,-195.16471739,0.00014027,2]
[353571779,1739922648630,-500.0,0.00014027,2]
[353571780,1739922648640,-500.0,0.00014027,2]
[353571781,1739922648651,-3381.99,0.00014027,2]
[353571782,1739922648662,-500.0,0.00014027,2]
[353571783,1739922648673,-500.0,0.00014027,2]
[353571784,1739922648684,-500.0,0.00014027,2]
[353571785,1739922648694,-500.0,0.00014027,2]
[353571786,1739922648705,-500.0,0.00014027,2]
[353571787,1739922648716,-500.0,0.00014027,2]
[353571788,1739922648727,-500.0,0.00014027,2]
[353571789,1739922648737,-500.0,0.00014027,2]
[353571790,1739922648748,-652.29,0.00014027,2]
[353571791,1739922648759,-596.6,0.00014027,2]
[353571792,1739922648770,-500.0,0.00014027,2]
[353571793,1739922648783,-562.22,0.00014027,2]
[353571794,1739922648793,-500.0,0.00014027,2]
[353571795,1739922648804,-1495.66,0.00014027,2]
[353571796,1739922648814,-518.57079483,0.00014027,2]
[353571797,1739922648828,-560.43,0.00014027,2]
[353571798,1739922648839,-500.0,0.00014027,2]
[353571799,1739922648850,-645.14,0.00014027,2]
[353571800,1739922648863,-500.0,0.00014027,2]
[353571801,1739922648874,-500.0,0.00014027,2]
[353571802,1739922648884,-602.64,0.00014027,2]
[353571803,1739922648896,-1408.41,0.00014027,2]
[353571804,1739922648907,-2727.96,0.00014027,2]
[353571805,1739922648921,-16269.78,0.00014027,2]
[353571806,1739922648930,-195.2508049,0.00014027,2]
[353571807,1739922648939,-500.0,0.00014027,2]
[353571808,1739922648948,-500.0,0.00014027,2]
[353571809,1739922648957,-500.0,0.00014027,2]
[353571810,1739922648967,-500.0,0.00014027,2]
[353571811,1739922648978,-500.0,0.00014027,2]
[353571812,1739922648998,-151.0,0.000141,2]
[353571813,1739922649010,-151.0,0.000141,2]
[353571814,1739922649020,-500.0,0.00014109,2]
[353571815,1739922649031,-411.34911798,0.00014109,2]
[353571816,1739922649042,-500.0,0.00014109,2]
[353571817,1739922649053,-500.0,0.00014109,2]
[353571818,1739922649064,-500.0,0.00014109,2]
[353571819,1739922649076,-522.69,0.00014109,2]
[353571820,1739922649086,-500.0,0.00014109,2]
[353571821,1739922649096,-500.0,0.00014109,2]
[353571822,1739922649108,-500.0,0.00014109,2]
[353571823,1739922649119,-1000.0,0.00014109,2]
[353571824,1739922649129,-548.38,0.00014109,2]
[353571825,1739922649140,-637.94,0.00014109,2]
[353571826,1739922649151,-1096.55,0.00014109,2]
[353571827,1739922649163,-818.16,0.00014109,2]
[353571828,1739922649174,-500.0,0.00014109,2]
[353571829,1739922649185,-500.0,0.00014109,2]
[353571830,1739922649197,-275.38,0.00014109,2]
[353571831,1739922649207,-3381.99,0.00014109,2]
[353571832,1739922649216,-500.0,0.00014109,2]
[353571833,1739922649227,-500.0,0.00014109,2]
[353571834,1739922649237,-500.0,0.00014109,2]
[353571835,1739922649247,-500.0,0.00014109,2]
[353571836,1739922649257,-500.0,0.00014109,2]
[353571837,1739922649267,-652.29,0.00014109,2]
[353571838,1739922649277,-596.6,0.00014109,2]
[353571839,1739922649287,-500.0,0.00014109,2]
[353571840,1739922649297,-562.22,0.00014109,2]
[353571841,1739922649307,-500.0,0.00014109,2]
[353571842,1739922649318,-1495.66,0.00014109,2]
[353571843,1739922649330,-560.43,0.00014109,2]
[353571844,1739922649342,-500.0,0.00014109,2]
[353571845,1739922649353,-645.14,0.00014109,2]
[353571846,1739922649366,-500.0,0.00014109,2]
[353571847,1739922649377,-500.0,0.00014109,2]
[353571848,1739922649389,-602.64,0.00014109,2]
[353571849,1739922649401,-1408.41,0.00014109,2]
[353571850,1739922649413,-2727.96,0.00014109,2]
[353571851,1739922649424,-16269.78,0.00014109,2]
[353571852,1739922649434,-322.25837774,0.00014109,2]
[353571853,1739922649445,-500.0,0.00014109,2]
[353571854,1739922649456,-500.0,0.00014109,2]
[353571855,1739922649573,-500.0,0.00014164,2]
[353571856,1739922649585,-329.239,0.00014186,2]
[353571857,1739922649595,-500.0,0.00014191,2]
[353571858,1739922649605,-500.0,0.00014191,2]
[353571859,1739922649615,-500.0,0.00014191,2]
[353571860,1739922649625,-500.0,0.00014191,2]
[353571861,1739922649636,-522.69,0.00014191,2]
[353571862,1739922649646,-500.0,0.00014191,2]
[353571863,1739922649657,-500.0,0.00014191,2]
[353571864,1739922649668,-500.0,0.00014191,2]
[353571865,1739922649678,-329.05403759,0.00014191,2]
[353571866,1739922649689,-548.38,0.00014191,2]
[353571867,1739922649699,-1096.55,0.00014191,2]
[353571868,1739922649710,-818.16,0.00014191,2]
[353571869,1739922649720,-500.0,0.00014191,2]
[353571870,1739922649731,-500.0,0.00014191,2]
[353571871,1739922649740,-3381.99,0.00014191,2]
[353571872,1739922649751,-500.0,0.00014191,2]
[353571873,1739922649762,-500.0,0.00014191,2]
[353571874,1739922649773,-500.0,0.00014191,2]
[353571875,1739922649784,-500.0,0.00014191,2]
[353571876,1739922649795,-500.0,0.00014191,2]
[353571877,1739922649806,-652.29,0.00014191,2]
[353571878,1739922649817,-596.6,0.00014191,2]
[353571879,1739922649832,-500.0,0.00014191,2]
[353571880,1739922649843,-562.22,0.00014191,2]
[353571881,1739922649855,-500.0,0.00014191,2]
[353571882,1739922649867,-1495.66,0.00014191,2]
[353571883,1739922649879,-560.43,0.00014191,2]
[353571884,1739922649890,-500.0,0.00014191,2]
[353571885,1739922649903,-645.14,0.00014191,2]
[353571886,1739922649914,-500.0,0.00014191,2]
[353571887,1739922649924,-602.64,0.00014191,2]
[353571888,1739922649934,-1408.41,0.00014191,2]
[353571889,1739922649944,-2727.96,0.00014191,2]
[353571890,1739922649954,-16269.78,0.00014191,2]
[353571891,1739922649963,-500.0,0.00014191,2]
[353571892,1739922649973,-151.0,0.000142,2]
[353571893,1739922649982,-151.0,0.000142,2]
[353571894,1739922649991,-151.0,0.000142,2]
[353571895,1739922650001,-1000.0,0.00014221,2]
[353571896,1739922650009,-500.0,0.00014221,2]
[353571897,1739922650018,-1000.0,0.00014221,2]
[353571898,1739922650028,-500.0,0.00014221,2]
[353571899,1739922650038,-166.1,0.00014238,2]
[353571900,1739922650047,-420.0,0.00014256,2]
[353571901,1739922650057,-387.94,0.00014273,2]
[353571902,1739922650067,-500.0,0.00014273,2]
[353571903,1739922650077,-500.0,0.00014273,2]
[353571904,1739922650086,-500.0,0.00014273,2]
[353571905,1739922650095,-522.69,0.00014273,2]
[353571906,1739922650105,-500.0,0.00014273,2]
[353571907,1739922650114,-500.0,0.00014273,2]
[353571908,1739922650123,-500.0,0.00014273,2]
[353571909,1739922650133,-548.38,0.00014273,2]
[353571910,1739922650142,-1096.55,0.00014273,2]
[353571911,1739922650152,-818.16,0.00014273,2]
[353571912,1739922650161,-500.0,0.00014273,2]
[353571913,1739922650171,-500.0,0.00014273,2]
[353571914,1739922650180,-3381.99,0.00014273,2]
[353571915,1739922650190,-500.0,0.00014273,2]
[353571916,1739922650200,-500.0,0.00014273,2]
[353571917,1739922650209,-500.0,0.00014273,2]
[353571918,1739922650218,-500.0,0.00014273,2]
[353571919,1739922650227,-652.29,0.00014273,2]
[353571920,1739922650236,-596.6,0.00014273,2]
[353571921,1739922650245,-500.0,0.00014273,2]
[353571922,1739922650254,-562.22,0.00014273,2]
[353571923,1739922650264,-500.0,0.00014273,2]
[353571924,1739922650273,-1495.66,0.00014273,2]
[353571925,1739922650283,-560.43,0.00014273,2]
[353571926,1739922650292,-500.0,0.00014273,2]
[353571927,1739922650302,-645.14,0.00014273,2]
[353571928,1739922650312,-500.0,0.00014273,2]
[353571929,1739922650321,-602.64,0.00014273,2]
[353571930,1739922650331,-1408.41,0.00014273,2]
[353571931,1739922650341,-2727.96,0.00014273,2]
[353571932,1739922650350,-16269.78,0.00014273,2]
[353571933,1739922650359,-313.72607322,0.00014273,2]
[353571934,1739922650369,-7438.69753278,0.00014287,2]
[353571935,1739922650379,-151.0,0.000143,2]
[353571936,1739922650388,-151.0,0.000143,2]
[353571937,1739922650397,-500.0,0.00014356,2]
[353571938,1739922650408,-482.46,0.00014356,2]
[353571939,1739922650417,-500.0,0.00014356,2]
[353571940,1739922650426,-522.69,0.00014356,2]
[353571941,1739922650436,-268.75821828,0.00014356,2]
[353571942,1739922650445,-500.0,0.00014356,2]
[353571943,1739922650455,-317.10180085,0.00014356,2]
[353571944,1739922650464,-548.38,0.00014356,2]
[353571945,1739922650474,-1096.55,0.00014356,2]
[353571946,1739922650483,-818.16,0.00014356,2]
[353571947,1739922650492,-500.0,0.00014356,2]
[353571948,1739922650501,-500.0,0.00014356,2]
[353571949,1739922650511,-3381.99,0.00014356,2]
[353571950,1739922650521,-500.0,0.00014356,2]
[353571951,1739922650530,-500.0,0.00014356,2]
[353571952,1739922650538,-500.0,0.00014356,2]
[353571953,1739922650548,-500.0,0.00014356,2]
[353571954,1739922650557,-652.29,0.00014356,2]
[353571955,1739922650566,-596.6,0.00014356,2]
[353571956,1739922650576,-500.0,0.00014356,2]
[353571957,1739922650586,-562.22,0.00014356,2]
[353571958,1739922650595,-500.0,0.00014356,2]
[353571959,1739922650605,-1495.66,0.00014356,2]
[353571960,1739922650615,-560.43,0.00014356,2]
[353571961,1739922650624,-500.0,0.00014356,2]
[353571962,1739922650634,-645.14,0.00014356,2]
[353571963,1739922650643,-500.0,0.00014356,2]
[353571964,1739922650653,-602.64,0.00014356,2]
[353571965,1739922650663,-1408.41,0.00014356,2]
[353571966,1739922650673,-2727.96,0.00014356,2]
[353571967,1739922650682,-16269.78,0.00014356,2]
[353571968,1739922650691,-151.0,0.000144,2]
[353571969,1739922650700,-151.0,0.000144,2]
[353571970,1739922650709,-151.0,0.000144,2]
[353571971,1739922650719,-151.0,0.000144,2]
[353571972,1739922650728,-151.0,0.000144,2]
[353571973,1739922650738,-500.0,0.00014438,2]
[353571974,1739922650747,-500.0,0.00014438,2]
[353571975,1739922650756,-522.69,0.00014438,2]
[353571976,1739922650765,-320.07804288,0.00014438,2]
[353571977,1739922650775,-548.38,0.00014438,2]
[353571978,1739922650784,-1096.55,0.00014438,2]
[353571979,1739922650793,-818.16,0.00014438,2]
[353571980,1739922650803,-500.0,0.00014438,2]
[353571981,1739922650812,-500.0,0.00014438,2]
[353571982,1739922650825,-3381.99,0.00014438,2]
[353571983,1739922650834,-500.0,0.00014438,2]
[353571984,1739922650844,-500.0,0.00014438,2]
[353571985,1739922650854,-500.0,0.00014438,2]
[353571986,1739922650864,-500.0,0.00014438,2]
[353571987,1739922650874,-652.29,0.00014438,2]
[353571988,1739922650883,-596.6,0.00014438,2]
[353571989,1739922650893,-512.51488268,0.00014438,2]
[353571990,1739922650905,-562.22,0.00014438,2]
[353571991,1739922650915,-500.0,0.00014438,2]
[353571992,1739922650925,-1495.66,0.00014438,2]
[353571993,1739922650934,-560.43,0.00014438,2]
[353571994,1739922650944,-500.0,0.00014438,2]
[353571995,1739922650954,-645.14,0.00014438,2]
[353571996,1739922650964,-500.0,0.00014438,2]
[353571997,1739922650974,-602.64,0.00014438,2]
[353571998,1739922650983,-1408.41,0.00014438,2]
[353571999,1739922651006,-2727.96,0.00014438,2]
[353572000,1739922651015,-16269.78,0.00014438,2]
[353572001,1739922651025,-151.0,0.000145,2]
[353572002,1739922651034,-500.0,0.0001452,2]
[353572003,1739922651046,-500.0,0.0001452,2]
[353572004,1739922651056,-522.69,0.0001452,2]
[353572005,1739922651066,-548.38,0.0001452,2]
[353572006,1739922651075,-1096.55,0.0001452,2]
[353572007,1739922651084,-818.16,0.0001452,2]
[353572008,1739922651094,-319.85749974,0.0001452,2]
[353572009,1739922651103,-500.0,0.0001452,2]
[353572010,1739922651113,-3381.99,0.0001452,2]
[353572011,1739922651123,-171.76745205,0.0001452,2]
[353572012,1739922651132,-471.67482115,0.0001452,2]
[353572013,1739922651142,-500.0,0.0001452,2]
[353572014,1739922651151,-276.82484743,0.0001452,2]
[353572015,1739922651161,-652.29,0.0001452,2]
[353572016,1739922651170,-596.6,0.0001452,2]
[353572017,1739922651180,-562.22,0.0001452,2]
[353572018,1739922651189,-437.94207273,0.0001452,2]
[353572019,1739922651199,-1495.66,0.0001452,2]
[353572020,1739922651208,-560.43,0.0001452,2]
[353572021,1739922651218,-500.0,0.0001452,2]
[353572022,1739922651227,-645.14,0.0001452,2]
[353572023,1739922651321,-495.02129887,0.0001452,2]
[353572024,1739922651330,-602.64,0.0001452,2]
[353572025,1739922651339,-1408.41,0.0001452,2]
[353572026,1739922651350,-2727.96,0.0001452,2]
[353572027,1739922651360,-16269.78,0.0001452,2]
[353572028,1739922651369,-151.0,0.000146,2]
[353572029,1739922651379,-500.0,0.00014602,2]
[353572030,1739922651389,-500.0,0.00014602,2]
[353572031,1739922651399,-522.69,0.00014602,2]
[353572032,1739922651410,-548.38,0.00014602,2]
[353572033,1739922651419,-1096.55,0.00014602,2]
[353572034,1739922651429,-818.16,0.00014602,2]
[353572035,1739922651438,-500.0,0.00014602,2]
[353572036,1739922651448,-3381.99,0.00014602,2]
[353572037,1739922651457,-500.0,0.00014602,2]
[353572038,1739922651467,-652.29,0.00014602,2]
[353572039,1739922651476,-596.6,0.00014602,2]
[353572040,1739922651485,-562.22,0.00014602,2]
[353572041,1739922651494,-1495.66,0.00014602,2]
[353572042,1739922651504,-560.43,0.00014602,2]
[353572043,1739922651513,-500.0,0.00014602,2]
[353572044,1739922651523,-645.14,0.00014602,2]
[353572045,1739922651532,-602.64,0.00014602,2]
[353572046,1739922651542,-1408.41,0.00014602,2]
[353572047,1739922651551,-2727.96,0.00014602,2]
[353572048,1739922651560,-16269.78,0.00014602,2]
[353572049,1739922651570,-608.3,0.00014684,2]
[353572050,1739922651580,-500.0,0.00014684,2]
[353572051,1739922651591,-522.69,0.00014684,2]
[353572052,1739922651601,-548.38,0.00014684,2]
[353572053,1739922651610,-1096.55,0.00014684,2]
[353572054,1739922651620,-818.16,0.00014684,2]
[353572055,1739922651630,-500.0,0.00014684,2]
[353572056,1739922651640,-3381.99,0.00014684,2]
[353572057,1739922651650,-334.24,0.00014684,2]
[353572058,1739922651661,-652.29,0.00014684,2]
[353572059,1739922651671,-596.6,0.00014684,2]
[353572060,1739922651680,-562.22,0.00014684,2]
[353572061,1739922651690,-1495.66,0.00014684,2]
[353572062,1739922651699,-560.43,0.00014684,2]
[353572063,1739922651709,-500.0,0.00014684,2]
[353572064,1739922651719,-645.14,0.00014684,2]
[353572065,1739922651729,-602.64,0.00014684,2]
[353572066,1739922651739,-1408.41,0.00014684,2]
[353572067,1739922651748,-2727.96,0.00014684,2]
[353572068,1739922651758,-16269.78,0.00014684,2]
[353572069,1739922651767,-151.0,0.000147,2]
[353572070,1739922651776,-500.0,0.00014767,2]
[353572071,1739922651785,-522.69,0.00014767,2]
[353572072,1739922651794,-548.38,0.00014767,2]
[353572073,1739922651805,-1096.55,0.00014767,2]
[353572074,1739922651814,-818.16,0.00014767,2]
[353572075,1739922651827,-500.0,0.00014767,2]
[353572076,1739922651837,-3381.99,0.00014767,2]
[353572077,1739922651847,-652.29,0.00014767,2]
[353572078,1739922651858,-596.6,0.00014767,2]
[353572079,1739922651870,-562.22,0.00014767,2]
[353572080,1739922651880,-1495.66,0.00014767,2]
[353572081,1739922651890,-560.43,0.00014767,2]
[353572082,1739922651901,-500.0,0.00014767,2]
[353572083,1739922651911,-645.14,0.00014767,2]
[353572084,1739922651920,-602.64,0.00014767,2]
[353572085,1739922651930,-1408.41,0.00014767,2]
[353572086,1739922651939,-2727.96,0.00014767,2]
[353572087,1739922651948,-16269.78,0.00014767,2]
[353572088,1739922651958,-182.71,0.00014786,2]
[353572089,1739922651967,-151.0,0.000148,2]
[353572090,1739922651976,-6421.6607946,0.000148,2]
[353572091,1739922651985,-283.61817734,0.000148,2]
[353572092,1739922651994,-283.61817734,0.000148,2]
[353572093,1739922652003,-283.61817734,0.000148,2]
[353572094,1739922652019,-283.61817734,0.000148,2]
[353572095,1739922652029,-283.61817734,0.000148,2]
[353572096,1739922652038,-283.61817734,0.000148,2]
[353572097,1739922652048,-283.61817734,0.000148,2]
[353572098,1739922652058,-283.61817734,0.000148,2]
[353572099,1739922652068,-283.61817734,0.000148,2]
[353572100,1739922652078,-283.61817734,0.000148,2]
[353572101,1739922652087,-283.61817734,0.000148,2]
[353572102,1739922652099,-283.61817734,0.000148,2]
[353572103,1739922652109,-283.61817734,0.000148,2]
[353572104,1739922652118,-283.61817734,0.000148,2]
[353572105,1739922652128,-283.61817734,0.000148,2]
[353572106,1739922652138,-283.61817734,0.000148,2]
[353572107,1739922652148,-283.61817734,0.000148,2]
[353572108,1739922652159,-283.61817734,0.000148,2]
[353572109,1739922652168,-283.61817734,0.000148,2]
[353572110,1739922652178,-283.61,0.000148,2]
[353572111,1739922652188,-496.19082867,0.000148,2]
[353572112,1739922652197,-496.19082867,0.000148,2]
[353572113,1739922652206,-496.19082867,0.000148,2]
[353572114,1739922652216,-496.19082867,0.000148,2]
[353572115,1739922652225,-496.19082867,0.000148,2]
[353572116,1739922652235,-496.19082867,0.000148,2]
[353572117,1739922652244,-496.19082867,0.000148,2]
[353572118,1739922652254,-496.19082867,0.000148,2]
[353572119,1739922652263,-496.19082867,0.000148,2]
[353572120,1739922652273,-496.19082867,0.000148,2]
[353572121,1739922652282,-496.19082867,0.000148,2]
[353572122,1739922652292,-496.19082867,0.000148,2]
[353572123,1739922652301,-496.19082867,0.000148,2]
[353572124,1739922652311,-496.19082867,0.000148,2]
[353572125,1739922652320,-496.19082867,0.000148,2]
[353572126,1739922652330,-496.19082867,0.000148,2]
[353572127,1739922652338,-496.19082867,0.000148,2]
[353572128,1739922652348,-496.19082867,0.000148,2]
[353572129,1739922652358,-496.19082867,0.000148,2]
[353572130,1739922652367,-496.19,0.000148,2]
[353572131,1739922652377,-500.0,0.00014849,2]
[353572132,1739922652386,-522.69,0.00014849,2]
[353572133,1739922652397,-548.38,0.00014849,2]
[353572134,1739922652407,-1096.55,0.00014849,2]
[353572135,1739922652416,-818.16,0.00014849,2]
[353572136,1739922652426,-500.0,0.00014849,2]
[353572137,1739922652435,-3381.99,0.00014849,2]
[353572138,1739922652445,-652.29,0.00014849,2]
[353572139,1739922652454,-596.6,0.00014849,2]
[353572140,1739922652463,-562.22,0.00014849,2]
[353572141,1739922652473,-1495.66,0.00014849,2]
[353572142,1739922652482,-560.43,0.00014849,2]
[353572143,1739922652492,-500.0,0.00014849,2]
[353572144,1739922652502,-645.14,0.00014849,2]
[353572145,1739922652512,-602.64,0.00014849,2]
[353572146,1739922652521,-1408.41,0.00014849,2]
[353572147,1739922652531,-2727.96,0.00014849,2]
[353572148,1739922652540,-16269.78,0.00014849,2]
[353572149,1739922652550,-500.0,0.00014873,2]
[353572150,1739922652559,-500.0,0.00014873,2]
[353572151,1739922652568,-500.0,0.00014873,2]
[353572152,1739922652578,-500.0,0.00014873,2]
[353572153,1739922652587,-500.0,0.00014873,2]
[353572154,1739922652597,-500.0,0.00014873,2]
[353572155,1739922652606,-500.0,0.00014873,2]
[353572156,1739922652616,-500.0,0.00014873,2]
[353572157,1739922652625,-151.0,0.000149,2]
[353572158,1739922652635,-10077.14434103,0.000149,2]
[353572159,1739922652644,-151.0,0.000149,2]
[353572160,1739922652654,-151.0,0.000149,2]
[353572161,1739922652663,-276119.299477,0.000149,2]
[353572162,1739922652673,-265.1324219,0.00014931,2]
[353572163,1739922652682,-522.69,0.00014931,2]
[353572164,1739922652691,-548.38,0.00014931,2]
[353572165,1739922652700,-1096.55,0.00014931,2]
[353572166,1739922652710,-818.16,0.00014931,2]
[353572167,1739922652719,-500.0,0.00014931,2]
[353572168,1739922652728,-3381.99,0.00014931,2]
[353572169,1739922652737,-652.29,0.00014931,2]
[353572170,1739922652746,-596.6,0.00014931,2]
[353572171,1739922652755,-562.22,0.00014931,2]
[353572172,1739922652763,-1495.66,0.00014931,2]
[353572173,1739922652772,-560.43,0.00014931,2]
[353572174,1739922652780,-500.0,0.00014931,2]
[353572175,1739922652789,-645.14,0.00014931,2]
[353572176,1739922652798,-602.64,0.00014931,2]
[353572177,1739922652884,-1408.41,0.00014931,2]
[353572178,1739922652893,-2727.96,0.00014931,2]
[353572179,1739922652906,-16269.78,0.00014931,2]
[353572180,1739922652916,-6389.66889638,0.00015,3]
[353572181,1739922652926,-200.07303827,0.00015,2]
[353572182,1739922652936,-3000.0,0.00015,4]
[353572183,1739922652945,-151.0,0.00015,2]
[353572184,1739922652955,-522.69,0.00015013,2]
[353572185,1739922652965,-548.38,0.00015013,2]